[Event "Razuvaev Memorial 2020"]
[Site "Moscow"]
[Date "2020.11.06"]
[Round "6.1"]
[White "Kramnik, Vladimir"]
[Black "Motylev, Alexander"]
[Result "1/2-1/2"]
[ECO "D02"]
[WhiteElo "2797"]
[BlackElo "2618"]
[Annotator "ChessBase"]
[PlyCount "96"]
[EventDate "2020.11.06"]
[EventCountry "RUS"]
[SourceTitle "playchess.com"]
[Source "ChessBase"]
[SourceQuality "1"]
[TimeControl "300+3"]

1. Nf3 {[%emt 0:00:03]} d5 {[%emt 0:00:04]} 2. g3 {[%emt 0:00:02]} g6 {[%emt 0:00:10]} 3. Bg2 {[%emt 0:00:01]} Bg7 {[%emt 0:00:01]} 4. d4 {[%emt 0:00:01]} Nf6 {[%emt 0:00:02]} 5. O-O {[%emt 0:00:01]} O-O {[%emt 0:00:03]} 6. c3 {[%emt 0:00:02]} a5 {[%emt 0:00:01]} 7. Bf4 {[%emt 0:00:06]} Bf5 {[%emt 0:00:22]} 8. Nbd2 {[%emt 0:00:16]} c6 {[%emt 0:00:14]} 9. Nh4 {[%emt 0:00:21]} Be6 {[%emt 0:00:11]} 10. e4 {[%emt 0:00:04]} Nxe4 {[%emt 0:00:25]} 11. Nxe4 {[%emt 0:00:01]} dxe4 {[%emt 0:00:01]} 12. Bxe4 {[%emt 0:00:02]} Bd5 {[%emt 0:00:06]} 13. Qe2 {[%emt 0:00:15]} e6 {[%emt 0:00:06]} 14. Nf3 {[%emt 0:00:05]} Bxe4 {[%emt 0:00:24]} 15. Qxe4 {[%emt 0:00:02]} a4 {[%emt 0:00:04]} 16. Qe2 {[%emt 0:00:21]} Nd7 {[%emt 0:00:09]} 17. Rad1 {[%emt 0:00:03]} Re8 {[%emt 0:00:06]} 18. h4 {[%emt 0:00:06]} Qa5 {[%emt 0:00:17]} 19. Rfe1 {[%emt 0:00:10]} Rad8 {[%emt 0:00:42]} 20. c4 {[%emt 0:00:09]} h6 {[%emt 0:00:07]} 21. Qe3 {[%emt 0:00:23]} Kh7 {[%emt 0:00:03]} 22. Kg2 {[%emt 0:00:05]} Qf5 {[%emt 0:00:09]} 23. Bc7 {[%emt 0:00:05]} Ra8 {[%emt 0:00:03]} 24. Ne5 {[%emt 0:00:09]} Nxe5 {[%emt 0:01:03]} 25. dxe5 {[%emt 0:00:02]} Qc2 {[%emt 0:00:07]} 26. Rd7 {[%emt 0:00:39]} Qxc4 {[%emt 0:00:08]} 27. Qf3 {[%emt 0:00:22]} Qxa2 {[%emt 0:00:18]} 28. h5 {[%emt 0:00:06]} gxh5 {[%emt 0:00:06]} 29. Qxf7 {[%emt 0:00:40]} Rg8 {[%emt 0:00:03]} 30. Qxh5 {[%emt 0:00:07]} Qc4 {[%emt 0:00:23]} 31. Bd6 {[%emt 0:00:45]} b5 {[%emt 0:00:03]} 32. Be7 {[%emt 0:00:11]} Qc2 {[%emt 0:00:06]} 33. Bf6 {[%emt 0:00:11]} Qf5 {[%emt 0:00:09]} 34. Qxf5+ {[%emt 0:00:13]} exf5 {[%emt 0:00:01]} 35. Red1 {[%emt 0:00:02]} b4 {[%emt 0:00:15]} 36. e6 {[%emt 0:00:17]} Kg6 {[%emt 0:00:03]} 37. Bxg7 {[%emt 0:00:04]} Rxg7 {[%emt 0:00:01]} 38. e7 {[%emt 0:00:01]} Re8 {[%emt 0:00:02]} 39. Re1 {[%emt 0:00:05]} a3 {[%emt 0:00:04]} 40. bxa3 {[%emt 0:00:03]} bxa3 {[%emt 0:00:01]} 41. Ra7 {[%emt 0:00:05]} Kf7 {[%emt 0:00:02]} 42. Re2 {[%emt 0:00:09]} a2 {[%emt 0:00:02]} 43. Re5 {[%emt 0:00:06]} Kf6 {[%emt 0:00:03]} 44. Rc5 {[%emt 0:00:01]} Rgxe7 {[%emt 0:00:03]} 45. Rxc6+ {[%emt 0:00:01]} Re6 {[%emt 0:00:01]} 46. Rxe6+ {[%emt 0:00:02]} Rxe6 {[%emt 0:00:01]} 47. Rxa2 {[%emt 0:00:01]} Kg6 {[%emt 0:00:02]} 48. Rc2 {[%emt 0:00:02]} Rb6 {[%emt 0:00:05]} 1/2-1/2

[Event "Razuvaev Memorial 2020"]
[Site "Moscow"]
[Date "2020.11.06"]
[Round "6.4"]
[White "Potkin, Vladimir"]
[Black "Tomashevsky, Evgeny"]
[Result "0-1"]
[ECO "E18"]
[WhiteElo "2443"]
[BlackElo "2681"]
[Annotator "ChessBase"]
[PlyCount "134"]
[EventDate "2020.11.06"]
[EventCountry "RUS"]
[SourceTitle "playchess.com"]
[Source "ChessBase"]
[SourceQuality "1"]
[TimeControl "300+3"]

1. Nf3 {[%emt 0:00:03]} Nf6 {[%emt 0:00:03]} 2. c4 {[%emt 0:00:01]} b6 {[%emt 0:00:02]} 3. Nc3 {[%emt 0:00:05]} Bb7 {[%emt 0:00:03]} 4. g3 {[%emt 0:00:13]} e6 {[%emt 0:00:18]} 5. Bg2 {[%emt 0:00:02]} Be7 {[%emt 0:00:01]} 6. O-O {[%emt 0:00:01]} O-O {[%emt 0:00:01]} 7. d4 {[%emt 0:00:09]} Ne4 {[%emt 0:00:01]} 8. Bd2 {[%emt 0:00:08]} d6 {[%emt 0:00:30]} 9. Qc2 {[%emt 0:00:10]} Nxd2 {[%emt 0:00:03]} 10. Nxd2 {[%emt 0:00:36]} c6 {[%emt 0:00:12]} 11. e3 {[%emt 0:00:06]} Nd7 {[%emt 0:00:08]} 12. b4 {[%emt 0:00:02]} Nf6 {[%emt 0:00:30]} 13. a4 {[%emt 0:00:10]} d5 {[%emt 0:00:44]} 14. Rab1 {[%emt 0:00:08]} Qd7 {[%emt 0:00:32]} 15. Rfc1 {[%emt 0:00:02]} Rfb8 {[%emt 0:00:23]} 16. c5 {[%emt 0:00:18]} bxc5 {[%emt 0:00:07]} 17. bxc5 {[%emt 0:00:00]} Ba6 {[%emt 0:00:07]} 18. Nf3 {[%emt 0:00:51]} Qc7 {[%emt 0:00:09]} 19. Na2 {[%emt 0:00:11]} Bc4 {[%emt 0:00:09]} 20. Nb4 {[%emt 0:00:12]} a5 {[%emt 0:00:42]} 21. Nxc6 {[%emt 0:00:12]} Qxc6 {[%emt 0:00:04]} 22. Ne5 {[%emt 0:00:01]} Qc8 {[%emt 0:00:04]} 23. Nxc4 {[%emt 0:00:03]} dxc4 {[%emt 0:00:02]} 24. Bxa8 {[%emt 0:00:01]} Rxa8 {[%emt 0:00:01]} 25. Qxc4 {[%emt 0:00:00]} Nd5 {[%emt 0:00:11]} 26. e4 {[%emt 0:00:19]} Nb4 {[%emt 0:00:04]} 27. d5 {[%emt 0:00:00]} exd5 {[%emt 0:00:23]} 28. exd5 {[%emt 0:00:00]} Bf6 {[%emt 0:00:03]} 29. Rb3 {[%emt 0:01:05]} h5 {[%emt 0:00:03]} 30. h4 {[%emt 0:00:11]} Qd8 {[%emt 0:00:19]} 31. d6 {[%emt 0:00:04]} Rc8 {[%emt 0:00:01]} 32. Qb5 {[%emt 0:00:14]} Rb8 {[%emt 0:00:01]} 33. Qc4 {[%emt 0:00:14]} Rc8 {[%emt 0:00:02]} 34. Rd1 {[%emt 0:00:11]} g6 {[%emt 0:00:13]} 35. Re3 {[%emt 0:00:07]} Qd7 {[%emt 0:00:08]} 36. Qb5 {[%emt 0:00:02]} Qxb5 {[%emt 0:00:06]} 37. axb5 {[%emt 0:00:02]} Rxc5 {[%emt 0:00:01]} 38. d7 {[%emt 0:00:01]} Rxb5 {[%emt 0:00:01]} 39. Rd6 {[%emt 0:00:09]} Rb7 {[%emt 0:00:02]} 40. d8=Q+ {[%emt 0:00:09]} Bxd8 {[%emt 0:00:02]} 41. Rxd8+ {[%emt 0:00:01]} Kg7 {[%emt 0:00:00]} 42. Ra8 {[%emt 0:00:00]} Rb5 {[%emt 0:00:06]} 43. Ra7 {[%emt 0:00:08]} Nc6 {[%emt 0:00:07]} 44. Rc7 {[%emt 0:00:02]} Ne5 {[%emt 0:00:03]} 45. Kg2 {[%emt 0:00:05]} Rd5 {[%emt 0:00:07]} 46. Ra7 {[%emt 0:00:02]} Nc6 {[%emt 0:00:03]} 47. Ra6 {[%emt 0:00:02]} Ne5 {[%emt 0:00:05]} 48. Re4 {[%emt 0:00:10]} Ng4 {[%emt 0:00:06]} 49. Rf4 {[%emt 0:00:02]} Rb5 {[%emt 0:00:06]} 50. Ra7 {[%emt 0:00:02]} Nh6 {[%emt 0:00:01]} 51. Ra4 {[%emt 0:00:02]} Rb1 {[%emt 0:00:01]} 52. R7xa5 {[%emt 0:00:01]} Ng4 {[%emt 0:00:03]} 53. Ra2 {[%emt 0:00:02]} Rb6 {[%emt 0:00:02]} 54. Ra6 {[%emt 0:00:02]} Rb5 {[%emt 0:00:01]} 55. Ra7 {[%emt 0:00:01]} Rf5 {[%emt 0:00:02]} 56. Re2 {[%emt 0:00:01]} Rf6 {[%emt 0:00:02]} 57. Ra3 {[%emt 0:00:05]} Nh6 {[%emt 0:00:04]} 58. Rf3 {[%emt 0:00:02]} Nf5 {[%emt 0:00:02]} 59. Re5 {[%emt 0:00:08]} Ra6 {[%emt 0:00:02]} 60. Rf4 {[%emt 0:00:03]} Ra2 {[%emt 0:00:03]} 61. Ree4 {[%emt 0:00:06]} Rb2 {[%emt 0:00:03]} 62. Rb4 {[%emt 0:00:02]} Ra2 {[%emt 0:00:01]} 63. Rfe4 {[%emt 0:00:02]} Rc2 {[%emt 0:00:03]} 64. Ra4 {[%emt 0:00:02]} Rb2 {[%emt 0:00:02]} 65. Ra7 {[%emt 0:00:03]} Rc2 {[%emt 0:00:02]} 66. Rd7 {[%emt 0:00:05]} Ra2 {[%emt 0:00:02]} 67. Rc4 {[%emt 0:00:06]} Ne3+ {[%emt 0:00:02]} 0-1

[Event "Razuvaev Memorial 2020"]
[Site "Moscow"]
[Date "2020.11.06"]
[Round "7.2"]
[White "Kobalia, Mikhail"]
[Black "Potkin, Vladimir"]
[Result "1-0"]
[ECO "C00"]
[WhiteElo "2569"]
[BlackElo "2443"]
[Annotator "ChessBase"]
[PlyCount "49"]
[EventDate "2020.11.06"]
[EventCountry "RUS"]
[SourceTitle "playchess.com"]
[Source "ChessBase"]
[SourceQuality "1"]
[TimeControl "300+3"]

1. e4 {[%emt 0:00:01]} c5 {[%emt 0:00:04]} 2. Nf3 {[%emt 0:00:01]} e6 {[%emt 0:00:01]} 3. g3 {[%emt 0:00:02]} Nc6 {[%emt 0:00:28]} 4. Bg2 {[%emt 0:00:01]} Nf6 {[%emt 0:00:01]} 5. Qe2 {[%emt 0:00:01]} Be7 {[%emt 0:00:02]} 6. O-O {[%emt 0:00:02]} O-O {[%emt 0:00:01]} 7. e5 {[%emt 0:00:05]} Nd5 {[%emt 0:00:02]} 8. Na3 {[%emt 0:00:02]} d6 {[%emt 0:00:06]} 9. Nc4 {[%emt 0:00:04]} dxe5 {[%emt 0:00:03]} 10. Ncxe5 {[%emt 0:00:01]} Nxe5 {[%emt 0:00:05]} 11. Nxe5 {[%emt 0:00:01]} Bf6 {[%emt 0:00:32]} 12. Re1 {[%emt 0:00:03]} Nb4 {[%emt 0:00:10]} 13. Qd1 {[%emt 0:00:13]} Qc7 {[%emt 0:00:06]} 14. Ng4 {[%emt 0:00:06]} Be7 {[%emt 0:00:04]} 15. b3 {[%emt 0:00:03]} f6 {[%emt 0:00:38]} 16. Ne3 {[%emt 0:00:08]} Rd8 {[%emt 0:00:08]} 17. f4 {[%emt 0:00:25]} Bf8 {[%emt 0:00:11]} 18. Bb2 {[%emt 0:00:04]} Bd7 {[%emt 0:00:11]} 19. Qg4 {[%emt 0:00:59]} e5 {[%emt 0:00:13]} 20. Qh4 {[%emt 0:00:11]} Bc6 {[%emt 0:01:11]} 21. fxe5 {[%emt 0:00:26]} Bxg2 {[%emt 0:00:02]} 22. exf6 {[%emt 0:00:13]} Rxd2 {[%emt 0:00:39]} 23. fxg7 {[%emt 0:00:13]} Be7 {[%emt 0:00:08]} 24. Nf5 {[%emt 0:00:10]} Bxh4 {[%emt 0:00:58]} 25. Nh6# {[%emt 0:00:02]} 1-0

[Event "Razuvaev Memorial 2020"]
[Site "Moscow"]
[Date "2020.11.06"]
[Round "7.4"]
[White "Motylev, Alexander"]
[Black "Lautier, Joel"]
[Result "1/2-1/2"]
[ECO "B30"]
[WhiteElo "2618"]
[BlackElo "2658"]
[Annotator "ChessBase"]
[PlyCount "96"]
[EventDate "2020.11.06"]
[EventCountry "RUS"]
[SourceTitle "playchess.com"]
[Source "ChessBase"]
[SourceQuality "1"]
[TimeControl "300+3"]

1. e4 {[%emt 0:00:01]} c5 {[%emt 0:00:01]} 2. Nf3 {[%emt 0:00:02]} Nc6 {[%emt 0:00:01]} 3. Bb5 {[%emt 0:00:01]} e6 {[%emt 0:00:01]} 4. Bxc6 {[%emt 0:00:01]} bxc6 {[%emt 0:00:02]} 5. d3 {[%emt 0:00:01]} Ne7 {[%emt 0:00:03]} 6. Qe2 {[%emt 0:00:02]} f6 {[%emt 0:00:02]} 7. e5 {[%emt 0:00:08]} Ng6 {[%emt 0:00:02]} 8. h4 {[%emt 0:00:03]} h5 {[%emt 0:00:03]} 9. Nbd2 {[%emt 0:00:15]} Qc7 {[%emt 0:00:28]} 10. Nc4 {[%emt 0:00:02]} Ba6 {[%emt 0:00:02]} 11. Qe4 {[%emt 0:00:01]} Kf7 {[%emt 0:00:05]} 12. Bf4 {[%emt 0:00:16]} Bxc4 {[%emt 0:00:55]} 13. dxc4 {[%emt 0:00:02]} d5 {[%emt 0:00:33]} 14. exd6 {[%emt 0:00:56]} Bxd6 {[%emt 0:00:03]} 15. Bxd6 {[%emt 0:00:19]} Qxd6 {[%emt 0:00:01]} 16. Rd1 {[%emt 0:00:02]} Qc7 {[%emt 0:00:01]} 17. O-O {[%emt 0:00:02]} Rad8 {[%emt 0:00:20]} 18. g3 {[%emt 0:00:04]} Rd7 {[%emt 0:00:22]} 19. Qe3 {[%emt 0:00:06]} Rxd1 {[%emt 0:00:18]} 20. Rxd1 {[%emt 0:00:01]} Qe7 {[%emt 0:00:01]} 21. Rd3 {[%emt 0:00:12]} Rb8 {[%emt 0:00:04]} 22. b3 {[%emt 0:00:12]} Rb7 {[%emt 0:00:05]} 23. Qe4 {[%emt 0:00:04]} Rc7 {[%emt 0:00:04]} 24. Qe2 {[%emt 0:01:29]} Kg8 {[%emt 0:00:03]} 25. Qd2 {[%emt 0:00:14]} e5 {[%emt 0:00:09]} 26. Rd8+ {[%emt 0:00:39]} Kf7 {[%emt 0:00:03]} 27. Qd6 {[%emt 0:00:10]} Qxd6 {[%emt 0:00:04]} 28. Rxd6 {[%emt 0:00:02]} Ke7 {[%emt 0:00:02]} 29. Rd1 {[%emt 0:00:03]} Nf8 {[%emt 0:00:04]} 30. Ne1 {[%emt 0:00:08]} Ne6 {[%emt 0:00:03]} 31. Ng2 {[%emt 0:00:08]} Rd7 {[%emt 0:00:07]} 32. Rxd7+ {[%emt 0:00:02]} Kxd7 {[%emt 0:00:01]} 33. Ne3 {[%emt 0:00:00]} g6 {[%emt 0:00:08]} 34. c3 {[%emt 0:00:06]} e4 {[%emt 0:00:05]} 35. Kg2 {[%emt 0:00:03]} Kd6 {[%emt 0:00:01]} 36. f4 {[%emt 0:00:05]} exf3+ {[%emt 0:00:03]} 37. Kxf3 {[%emt 0:00:01]} f5 {[%emt 0:00:05]} 38. Ng2 {[%emt 0:00:02]} Ke5 {[%emt 0:00:03]} 39. Nf4 {[%emt 0:00:02]} Nxf4 {[%emt 0:00:29]} 40. gxf4+ {[%emt 0:00:01]} Kd6 {[%emt 0:00:01]} 41. b4 {[%emt 0:00:04]} Kc7 {[%emt 0:00:11]} 42. Ke3 {[%emt 0:00:07]} Kb6 {[%emt 0:00:08]} 43. Kd3 {[%emt 0:00:02]} a5 {[%emt 0:00:07]} 44. a3 {[%emt 0:00:04]} a4 {[%emt 0:00:05]} 45. Ke3 {[%emt 0:00:17]} Kc7 {[%emt 0:00:06]} 46. Kd3 {[%emt 0:00:15]} Kb6 {[%emt 0:00:01]} 47. Ke3 {[%emt 0:00:01]} Kc7 {[%emt 0:00:01]} 48. Kd3 {[%emt 0:00:01]} Kb6 {[%emt 0:00:01]} 1/2-1/2